Cogmind - Beta 13 @@@ ROGUE MODE // 2024.07.23 @ 17:44:21 Player: Wonda Result: Destroyed by L-41 Fighter with Axe Performance ------------- Evolutions (1) 500 Regions Visited (5) 1000 Robots Destroyed (24) 120 Value Destroyed (687) 687 Prototype IDs (1) 20 Alien Tech Used (0) 0 Bonus (836) 836 TOTAL SCORE: 3163 Bonus ------- Follower Combat Kills 236 Met Imprinter 300 Was Imprinted 300 Cogmind --------- Core Integrity 0/400 Matter 230/300 Energy 96/100 System Corruption 0% Temperature Cool (0) Movement Core (100) Ox1 Location -6/Proximity Caves Parts ------- > --- POWER (1) -------- (None) > --- PROPULSION (3) --- (None) > --- UTILITY (3) ------ Small Storage Unit > --- WEAPON (2) ------- (None) > --- INVENTORY (8) ---- Ion Engine Aluminum Leg Aluminum Leg Sensor Array Peak State ------------ > --- POWER ------------ Improved Ion Engine > --- PROPULSION ------- Aluminum Leg Aluminum Leg Carbon-fiber Leg > --- UTILITY ---------- Small Storage Unit Hardened Light Armor Plating Hacking Drone Bay > --- WEAPON ----------- Autogun Autogun > --- INVENTORY -------- Ion Engine Aluminum Leg Aluminum Leg Sensor Array Shield Generator Autogun Autogun Rocket Launcher [Rating: 24] Favorites ----------- Power Improved Ion Engine Engine Improved Ion Engine Propulsion Aluminum Leg Leg Aluminum Leg Utility Small Storage Unit Device Hacking Drone Bay Storage Small Storage Unit Protection Hardened Light Armor Plating Weapon Autogun Energy Gun Medium Laser Ballistic Gun Autogun Launcher Rocket Launcher Build | -11 -10 -9 -9 -7 -6 ------- Run | Yrd Mat Mat Min Zio Pro Slots Evolved 2 | . . 2 . . . Power . | . . . . . . Propulsion 1 | . . 1 . . . Utility 1 | . . 1 . . . Weapon . | . . . . . . Parts Attached 27 | 8 3 7 1 1 7 Power 3 | 2 . 1 . . . Engine 3 | 2 . 1 . . . Core . | . . . . . . Reactor . | . . . . . . Propulsion 8 | 2 . 3 1 . 2 Treads . | . . . . . . Leg 8 | 2 . 3 1 . 2 Wheel . | . . . . . . Hover . | . . . . . . Flight . | . . . . . . Utility 8 | 1 1 3 . 1 2 Device 5 | . . 2 . 1 2 Storage 2 | 1 1 . . . . Processor . | . . . . . . Hackware . | . . . . . . Protection 1 | . . 1 . . . Artifact . | . . . . . . Weapon 8 | 3 2 . . . 3 Energy Gun 2 | 2 . . . . . Energy Cannon . | . . . . . . Ballistic Gun 5 | 1 2 . . . 2 Ballistic Cannon . | . . . . . . Launcher 1 | . . . . . 1 Special Weapon . | . . . . . . Impact Weapon . | . . . . . . Slashing Weapon . | . . . . . . Piercing Weapon . | . . . . . . Special Melee Weapon . | . . . . . . Unidentified Prototypes 1 | . . . . 1 . Parts Lost 14 | . 1 2 . . 11 Power 1 | . . . . . 1 Propulsion 5 | . . 2 . . 3 Utility 3 | . . . . . 3 Weapon 5 | . 1 . . . 4 Highest Loss Streak 11 | . 1 1 . . 11 To Critical Strikes . | . . . . . . Average Slot Usage (%) 97 | . 89 96 100 99 94 Engine 11 | . 14 11 11 11 10 Leg 31 | . 28 32 33 33 31 Device 7 | . . 4 11 10 10 Storage 13 | . 18 17 11 11 11 Protection 8 | . . 8 11 11 9 Energy Gun 2 | . 17 . . . . Ballistic Gun 20 | . 9 22 22 22 21 Naked Turns . | . . . . . . Heaviest Build 25 | 14 17 25 24 24 24 Greatest Support 35 | 20 20 30 33 33 35 Greatest Overweight (x) 2 | . . 1 . . 2 Average Overweight (x) . | . . . . . . Largest Inventory Capacity 8 | 8 8 8 8 8 8 Average Capacity 7 | 7 8 8 8 8 8 Most Carried 8 | 5 8 8 8 8 8 Average Carried 7 | 2 6 6 7 7 7 Final Capacity 8 | 8 8 8 8 8 8 Final Carried 8 | 4 6 7 8 8 4 Class Distribution -------------------- 68% | Mutant 31% | Scavenger-Mutant Dominant Class ---------------- Mutant | -10/Materials Mutant | -9/Materials Scavenger-Mutant | -9/Mines Mutant | -7/Zion Mutant | -6/Proximity Caves Resources | -11 -10 -9 -9 -7 -6 ----------- Run | Yrd Mat Mat Min Zio Pro Matter Collected 808 | 242 118 281 10 10 147 Remotely . | . . . . . . Salvage Created 942 | . 400 372 . . 170 Parts 59 | . 22 32 . . 5 Haulers Intercepted . | . . . . . . Recyclers Shooed 1 | . . 1 . . . Parts Field Recycled . | . . . . . . Retrieved Matter . | . . . . . . Parts Self-Destructed 10 | . . . . . 10 Prevented 5 | . . . . . 5 Kills | -11 -10 -9 -9 -7 -6 ------- Run | Yrd Mat Mat Min Zio Pro Combat Hostiles Destroyed 17 | . 8 6 . . 3 Guns 16 | . 8 6 . . 2 AOE 1 | . . . . . 1 Classes Destroyed 8 | . 4 3 . . 1 Worker 1 | . 1 . . . . Recycler 1 | . . 1 . . . Operator 1 | . 1 . . . . Watcher 4 | . 1 3 . . . Swarmer 3 | . . 3 . . . Grunt 9 | . 8 . . . 1 Duelist 2 | . . . . . 2 Sentry 3 | . . 3 . . . Best Kill Streak 4 | . 3 4 . . 1 Combat Bots Only 4 | . 2 4 . . 1 Max Kills in Single Turn 2 | . 1 2 . . 1 Gunslinging 1 | . . 1 . . . Exploded 1 | . . . . . 1 Melee . | . . . . . . Uniques/NPCs Destroyed . | . . . . . . Combat | -11 -10 -9 -9 -7 -6 -------- Run | Yrd Mat Mat Min Zio Pro Hostile Shots Fired 252 | . 43 43 . . 166 Missed 86 | . 13 14 . . 59 Damage Taken 2496 | . 370 316 . . 1810 Core 512 | . 103 13 . . 396 Absorbed by Shields 39 | . . 7 . . 32 Regen/Repaired (Parts) 266 | . . . . 266 . Core Remaining (%) 79 | 100 58 . . . . Volleys Fired 84 | . 34 26 . . 24 Largest 2 | . 2 2 . . 2 Hottest 90 | . 90 46 . . 56 Shots Fired 165 | . 66 52 . . 47 Gun 163 | . 66 52 . . 45 Cannon . | . . . . . . Launcher 2 | . . . . . 2 Special . | . . . . . . Kinetic 103 | . 6 52 . . 45 Thermal 31 | . 31 . . . . Explosive 2 | . . . . . 2 Electromagnetic 29 | . 29 . . . . Robot Hit Streak 7 | . 6 6 . . 7 Robot Miss Streak 4 | . 3 4 . . 3 Penetration Max . | . . . . . . Secondary Targets 3 | . . 3 . . . Max Gunslinging Chain 1 | . . 1 . . . Shots Hit Robots 102 | . 40 31 . . 31 Core Hits 47 | . 20 13 . . 14 Critical Kills . | . . . . . . Critical Parts Destroyed 1 | . . 1 . . . Critical Strikes 4 | . 3 1 . . . Burn 3 | . 3 . . . . Destroy 1 | . . 1 . . . Melee Attacks . | . . . . . . Impact . | . . . . . . Slashing . | . . . . . . Piercing . | . . . . . . Sneak Attacks . | . . . . . . Combat Hostiles . | . . . . . . Follow-up Attacks . | . . . . . . Damage Inflicted 1799 | . 599 475 . . 725 Guns 1468 | . 589 452 . . 427 Cannons . | . . . . . . Explosions 298 | . . . . . 298 Melee . | . . . . . . Ramming 33 | . 10 23 . . . Kinetic 953 | . 74 452 . . 427 Thermal 263 | . 263 . . . . Explosive 298 | . . . . . 298 Electromagnetic 252 | . 252 . . . . Impact . | . . . . . . Slashing . | . . . . . . Piercing . | . . . . . . Highest Corruption 2 | . 2 . . . . Average Corruption 2 | . 2 . . . . Corruption Purged . | . . . . . . Corruption Blocked . | . . . . . . Overload Shots . | . . . . . . Overflow Damage . | . . . . . . Projectiles . | . . . . . . Explosions . | . . . . . . Melee . | . . . . . . Knockbacks . | . . . . . . Impact . | . . . . . . Kinetic . | . . . . . . Secondary . | . . . . . . Self-Inflicted Damage 43 | . . . . . 43 Shots 2 | . . . . . 2 Rammed . | . . . . . . Targets Rammed 7 | . 3 4 . . . Kicked 7 | . 3 4 . . . Crushed . | . . . . . . Highest Temperature 296 | . 296 55 . . 41 Average Temperature 61 | . 97 18 . . 15 Received Heat Transfer 511 | . 204 60 . . 247 Siege Activations . | . . . . . . Robots Corrupted . | . . . . . . Combat Hostiles . | . . . . . . Parts Fried 2 | . 2 . . . . Impact Corruptions . | . . . . . . Robots Melted . | . . . . . . Combat Hostiles . | . . . . . . Parts Melted 3 | . 3 . . . . Heat Transferred 999 | . 999 . . . . Parts Sabotaged . | . . . . . . Parts Stolen . | . . . . . . Parts Stripped . | . . . . . . Power Chain Reactions . | . . . . . . Alert | -11 -10 -9 -9 -7 -6 ------- Run | Yrd Mat Mat Min Zio Pro Peak Influence 274 | . 274 134 52 . . Initial 52 | . . 31 52 . . Average 66 | . 121 45 52 . . Maximum Alert Level 1 | . 1 . . . . Low Security (%) 91 | 100 73 100 100 . . Level 1 8 | . 26 . . . . Level 2 . | . . . . . . Level 3 . | . . . . . . Level 4 . | . . . . . . Level 5 . | . . . . . . High Security . | . . . . . . Max Security . | . . . . . . Squads Dispatched 3 | . 2 . . . 1 Investigation 1 | . 1 . . . . Extermination . | . . . . . . Reinforcement 1 | . 1 . . . . Assault 1 | . . . . . 1 Garrison . | . . . . . . Intercept . | . . . . . . Searches Triggered . | . . . . . . Construction Impeded . | . . . . . . Haulers Reinforced . | . . . . . . Active Scanning Responses . | . . . . . . Cargo Convoy Interrupts . | . . . . . . Stealth | -11 -10 -9 -9 -7 -6 --------- Run | Yrd Mat Mat Min Zio Pro Distress Signals 1 | . . 1 . . . Communications Jammed . | . . . . . . Distress Signals . | . . . . . . Times Spotted 42 | . 14 10 . . 18 Peak Tracking Total 7 | . 3 4 . . 7 Tactical Retreats 3 | . 1 . . . 2 Traps | -11 -10 -9 -9 -7 -6 ------- Run | Yrd Mat Mat Min Zio Pro Traps Triggered 1 | . 1 . . . . Indirectly . | . . . . . . Trap Hack Attempts . | . . . . . . Triggered . | . . . . . . Disarmed . | . . . . . . Reprogrammed . | . . . . . . Reused . | . . . . . . Traps Extracted . | . . . . . . Installed . | . . . . . . Triggered . | . . . . . . Machines | -11 -10 -9 -9 -7 -6 ---------- Run | Yrd Mat Mat Min Zio Pro Machines Disabled . | . . . . . . Max in Single Turn . | . . . . . . Machines Repaired . | . . . . . . Machines Dismantled . | . . . . . . Machines Sabotaged . | . . . . . . Overloaded Fab Kills . | . . . . . . Hacking | -11 -10 -9 -9 -7 -6 --------- Run | Yrd Mat Mat Min Zio Pro Machines Accessed 6 | . 2 2 2 . . Terminals 5 | . 2 2 1 . . Fabricators . | . . . . . . Repair Stations . | . . . . . . Recycling Units . | . . . . . . Scanalyzers . | . . . . . . Garrison Access . | . . . . . . Total Hacks 12 | . 6 2 4 . . Successful 8 | . 4 2 2 . . Failed 4 | . 2 . 2 . . Catastrophic 1 | . . . 1 . . Database Lockouts . | . . . . . . Manual 5 | . 3 . 2 . . Terminals 11 | . 6 2 3 . . Fabricators . | . . . . . . Repair Stations . | . . . . . . Recycling Units . | . . . . . . Scanalyzers . | . . . . . . Garrison Access . | . . . . . . Terminal Hacks 8 | . 4 2 2 . . Record 5 | . 4 . 1 . . Robot Analysis 1 | . . 1 . . . Open Door 1 | . . . 1 . . Alert Level 1 | . . 1 . . . Fabricator Hacks . | . . . . . . Repair Station Hacks . | . . . . . . Recycling Unit Hacks . | . . . . . . Scanalyzer . | . . . . . . Garrison Access Hacks . | . . . . . . Unauthorized Hacks . | . . . . . . Terminals . | . . . . . . Fabricators . | . . . . . . Repair Stations . | . . . . . . Recycling Units . | . . . . . . Scanalyzers . | . . . . . . Garrison Access . | . . . . . . Data Cores Recovered . | . . . . . . Used . | . . . . . . Hacking Detections 3 | . 2 . 1 . . Full Trace Events 1 | . 1 . . . . Feedback Events . | . . . . . . Feedback Blocked . | . . . . . . Robot Schematics Acquired . | . . . . . . Robots Built . | . . . . . . Authchips . | . . . . . . Time . | . . . . . . Total Robot Build Rating . | . . . . . . Part Schematics Acquired . | . . . . . . Parts Built . | . . . . . . Authchips . | . . . . . . Time . | . . . . . . Total Part Build Rating . | . . . . . . Parts Repaired . | . . . . . . Time . | . . . . . . Parts Recycled . | . . . . . . Recycled Matter . | . . . . . . Retrieved Matter . | . . . . . . Retrieved Components . | . . . . . . Parts Scanalyzed . | . . . . . . Part Schematics Acquired . | . . . . . . Parts Damaged . | . . . . . . Bothacking | -11 -10 -9 -9 -7 -6 ------------ Run | Yrd Mat Mat Min Zio Pro Used RIF Installer . | . . . . . . Robots Hacked . | . . . . . . Non-combat . | . . . . . . Combat . | . . . . . . Robot Hacks Applied . | . . . . . . Relay Couplers Released . | . . . . . . Fabnet Peak Effective % . | . . . . . . Robots Rewired . | . . . . . . Allies Hacked . | . . . . . . Hacks Repelled . | . . . . . . Allies | -11 -10 -9 -9 -7 -6 -------- Run | Yrd Mat Mat Min Zio Pro Total Allies 6 | . . . 2 4 . Largest Group 4 | . . . 2 4 4 Highest-Rated Group 149 | . . . 49 149 149 Highest-Rated Ally 39 | . . . 31 39 39 Total Orders . | . . . . . . Ally Attacks 36 | . . . 5 . 31 Total Damage 949 | . . . 88 . 861 Kills 6 | . . . . . 6 Allies Corrupted . | . . . . . . Allies Melted . | . . . . . . Intel | -11 -10 -9 -9 -7 -6 ------- Run | Yrd Mat Mat Min Zio Pro Robot Analysis Total 1 | . . 1 . . . Derelict Logs Recovered 1 | . . . . 1 . Drone Launches . | . . . . . . Drone Recoveries . | . . . . . . Exploration | -11 -10 -9 -9 -7 -6 ------------- Run | Yrd Mat Mat Min Zio Pro Turns Passed 3121 | 126 456 612 292 1306 329 Spaces Moved 2226 | 97 261 428 223 1018 199 Core 9 | 6 . . . . 3 Treads . | . . . . . . Legs 2217 | 91 261 428 223 1018 196 Wheels . | . . . . . . Hover . | . . . . . . Flight . | . . . . . . Fastest Speed 50 | 50 120 120 120 120 100 Average Speed 119 | 115 120 120 120 120 119 Slowest Speed 190 | 120 120 190 120 120 150 Overloaded Moves . | . . . . . . Propulsion Burnouts . | . . . . . . Robots Hopped . | . . . . . . Cave-ins Triggered . | . . . . . . Exploration Rate (%) 38 | 4 36 34 38 89 31 Regions Visited 5 Branch Regions 3 Pre-discovered Areas . | . . . . . . Known Exits Taken . | . . . . . . Unknown Exits Taken 5 | 1 1 1 1 1 . Scrap Searched 3 | . . . 1 1 1 Spaces Dug . | . . . . . . Terrain Destroyed 13 | . . . . . 13 Melee . | . . . . . . Projectile . | . . . . . . AOE 13 | . . . . . 13 Terrain Rammed . | . . . . . . Walls Destroyed . | . . . . . . Machines Disabled . | . . . . . . Actions | -11 -10 -9 -9 -7 -6 --------- Run | Yrd Mat Mat Min Zio Pro Total 2531 | 108 341 480 247 1104 251 Wait 152 | . 24 8 21 80 19 Move 2221 | 96 260 427 222 1017 199 Hop . | . . . . . . Pick Up 22 | 3 10 4 1 3 1 Fast Attach 11 | 6 1 3 . . 1 Attach 12 | 1 2 3 . 1 5 Detach 2 | 1 . 1 . . . Swap 4 | 1 . 1 1 . 1 Drop 15 | . 7 3 1 3 1 Fire 84 | . 34 26 . . 24 Melee . | . . . . . . Ram . | . . . . . . Kick 7 | . 3 4 . . . Crush . | . . . . . . Escape Stasis . | . . . . . . Rewire 1 | . . . 1 . . Trap . | . . . . . . Miscellaneous . | . . . . . . Route ------- -11/Scrapyard -10/Materials -9/Materials (discovered 4 exits: [*Mat] / *Min / [*Sto x2]) -9/Mines -7/Zion -6/Proximity Caves History --------- Turn | Location | Event 9 | -11/Scrapyard | Discovered new exit (range 15) 127 | -11/Scrapyard | Entered Materials 304 | -10/Materials | Build established: Mutant 577 | -10/Materials | Discovered new exit (range 6) 583 | -10/Materials | Entered another Materials area 583 | -9/Materials | Evolved 2 slots: Propulsion x1, Utility x1 617 | -9/Materials | Discovered new exit (range 12) 628 | -9/Materials | Discovered new exit (range 15) 688 | -9/Materials | Discovered new exit (range 16) 1091 | -9/Materials | Discovered new exit (range 15) 1195 | -9/Materials | Entered Mines 1199 | -9/Mines | Assembled infested the area 1280 | -9/Mines | Build established: Scavenger-Mutant 1330 | -9/Mines | Met a Derelict who couldn't figure out how to use a Trap Extractor 1418 | -9/Mines | A Derelict revealed a hidden shortcut to a safe place 1487 | -9/Mines | Entered Zion 1487 | -7/Zion | Accompanied by 2 allies 1509 | -7/Zion | Found CR-A16's Pointy Stick 1537 | -7/Zion | Led the pair of lost Derelicts to a safe place 1604 | -7/Zion | Given the Hacking Drone Bay 1604 | -7/Zion | Found Prototype Device 1840 | -7/Zion | Identified Hacking Drone Bay 1958 | -7/Zion | Given A8's code to call for help 2090 | -7/Zion | Learned 4 Factory zone layouts 2146 | -7/Zion | Build established: Mutant 2268 | -7/Zion | Imprinted 2270 | -7/Zion | Declared Zion's savior 2685 | -7/Zion | Visited the Megawrench Repair Shop 2687 | -7/Zion | Megawrench repaired 8 parts 2718 | -7/Zion | Discovered new exit (range 13) 2793 | -7/Zion | Entered Proximity Caves 2793 | -6/Proximity Caves | Accompanied by 4 allies 2839 | -6/Proximity Caves | Attracted the attention of an 0b10 checkpoint 2928 | -6/Proximity Caves | Attracted the attention of an 0b10 outpost 3005 | -6/Proximity Caves | Lost 4 allies 3058 | -6/Proximity Caves | Spotted B-75 Beast 3116 | -6/Proximity Caves | Core integrity fell below 50% 3122 | -6/Proximity Caves | Core integrity fell below 20% 3122 | -6/Proximity Caves | Destroyed by L-41 Fighter with Axe Last Messages --------------- Found 13 Matter. Acquired 13 matter. Slug penetrates Wall. G-50 Soldier destroyed. Rocket Launcher destroyed. Critical hit (Burn: +50). Hacking Drone Bay destroyed. Autogun destroyed. Slug penetrates L-41 Fighter. Slug penetrates Wall. Carbon-fiber Leg destroyed. Aluminum Leg destroyed. Slug penetrates Abandoned Machinery. M-28 Smith repairs H-66 Slayer. Autogun severed. Slug penetrates L-41 Fighter. M-28 Smith repairs Phase Shifter. Penetrated by Slug. Autogun destroyed. Penetrated by Slug. Map ----- +----------------------------------------------------+ | ????????????????????????# ?? ##???## | | ????????????????????????# ??# ##?## | | ??????????????????????? ???# ### | | ???????????????????????? ??# | | ???????????????????????? #??# | | ??????????????????????????# ### | | ??????????????????????????# | | ??????????????????????????# | | ???????????????????????????# ### | | ????????????????????????????# ####?# | | ????????????????????????????## ####### | | ?????????????????????????????## ##?# | | ??????????????????????????????# #??# | | ??????????????????????????????# #??## | | ??????????????????????????????## #???## | | ???????????????????????????????### #????### | | ?????????????????????????????????# ########## | | ??????????????????????????######## #?? | | ?????????????????????????# ###### #?? | | ????????????????????????? ##????# #?? | | ????????????????????##### ###### #?? | | ????????????????????#" # gh%=h ##? | | ????????????????????# "" ]m #? | | ????????????????????#"" # ## #### # | | ????????????????????#" # #####??# | | ????????????????????#@ll # ##??????## | | ????????????????????###### #????????## | | ??????????????????????????# #??????????## | | ??????????????????????????## ##????????????# | | ???????????????????????????#####?????????????? | | ?????????????????????????????????????????????? | | ?????????????????????????????????????????????? | | ?????????????????????????????????????????????? | | ?????????????????????????????????????????????? | | ?????????????????????????????????????????????? | | ?????????????????????????????????????????????? | | ?????????????????????????????????????????????? | | ?????????????????????????????????????????????? | | ?????????????????????????????????????????????? | | ?????????????????????????????????????????????? | | ?????????????????????????????????????????????? | | ?????????????????????????????????????????????? | | ?????????????????????????????????????????????? | | ?????????????????????????????????????????????? | | ?????????????????????????????????????????????? | | | | | | | | | | | +----------------------------------------------------+ Best States ------------- Heat Dissipation 28 Energy Generation 12 Energy Capacity 265 Matter Stores 350 Matter Capacity 350 Sight Range 16 Robot Scan Range 14 Terrain Scan Density 10 Armor Coverage 150 Evasion (%) 55 Item Schematics ----------------- None Robot Schematics ------------------ None Fabricated ------------ Nothing Alien Tech Used ----------------- None Achievements -------------- Robot Respite The One Challenges ------------ None Game ------ Seed PropulsionDeepScythe Manual? 0 Play Time 00:41:02 Cumulative 5.2 hours Start 2024.07.23 @ 17:04:12 End 2024.07.23 @ 17:44:21 Sessions 1 Manual Loads 0 Difficulty Rogue Special Mode None Game No. 7 Rogue 7 Adventurer 0 Explorer 0 Win Type - Total 0 Types 0/0/0/0/0/0/0/0/0 Lore% 11 Gallery% 10 Achievement% 9 Wizard Run 0 Options --------- Layout 1 ASCII 0 Keyboard 1 Movement Numpad Keybinds 0 Fullscreen 1 Font 16/SmallcapsGlow Map View 50x35 Zoom Use 0% Tactical HUD 0 Map Filters NONE Filters NONE Steam SD RUN: c7d02a91-abb6-4f95-bc6e-4c803f4c06be